bitfinex/quotes_BTCUSD_20220211
["timestamp","ask_amount","ask_price","bid_price","bid_amount"]
[1644566750228,0.00504755,43557.0,43545.0,0.9]
[1644566750485,0.00504755,43557.0,43556.0,0.04825242]
[1644566750700,0.002,43577.0,43556.0,0.04825242]
[1644566750701,0.002,43577.0,43557.0,0.9]
[1644566750702,0.1679562,43570.0,43557.0,0.9]
[1644566750883,0.1679562,43570.0,43559.0,0.04825242]
[1644566750884,0.114861,43562.0,43559.0,0.04825242]
[1644566751084,0.0011466,43572.0,43547.0,0.1186]
[1644566751085,0.0061025,43559.0,43555.0,0.04825242]
[1644566751285,0.0011466,43572.0,43554.0,1.72201826]
[1644566751286,0.2,43556.0,43554.0,1.72201826]
[1644566751485,0.057438,43562.0,43554.0,1.14867884]
[1644566751685,0.29627971,43571.0,43545.0,0.9]
[1644566751686,0.3,43558.0,43551.0,0.321449]
[1644566751885,0.1381174,43559.0,43547.0,0.620572]
[1644566752085,0.25747759,43557.0,43556.0,0.04825242]
[1644566752384,0.1955504,43559.0,43554.0,0.05744464]
[1644566752385,0.172327,43559.0,43554.0,0.05744464]
[1644566752686,0.29320131,43558.0,43554.0,0.05744464]
[1644566752989,0.29320131,43558.0,43539.0,0.5567]
[1644566752990,0.057445,43557.0,43539.0,0.5567]
[1644566753190,0.05745,43555.0,43540.0,0.32057]
[1644566753387,0.05245,43555.0,43549.0,0.30340866]
[1644566753589,0.114899,43556.0,43550.0,0.07586707]
[1644566753891,0.68882,43555.0,43551.0,0.320602]
[1644566754118,0.68882,43555.0,43550.0,0.07586707]
[1644566754119,0.74627,43555.0,43550.0,0.07586707]
[1644566754320,0.74627,43555.0,43550.0,0.12586707]
[1644566754620,0.66549761,43554.0,43550.0,0.12586707]
[1644566754819,0.52655288,43554.0,43550.0,0.12586707]
[1644566755021,0.17232,43554.0,43550.0,0.00996515]
[1644566756120,0.74627,43555.0,43550.0,0.1686364]
[1644566756429,0.1,43566.0,43555.0,0.320602]
[1644566756620,0.02002413,43587.0,43563.0,0.38592876]
[1644566756920,0.057413,43573.0,43570.0,0.07256374]
[1644566757119,0.057413,43573.0,43570.0,0.39316574]
[1644566757319,0.057413,43573.0,43570.0,0.370602]
[1644566757886,0.000215,43586.0,43572.0,0.05]
[1644566758081,0.000215,43586.0,43572.0,0.06489]
[1644566758082,0.00046104,43574.0,43572.0,0.06489]
[1644566758280,0.05787904,43574.0,43572.0,0.06489]
[1644566758479,0.36380327,43574.0,43572.0,0.06489]
[1644566758678,0.36380327,43574.0,43566.0,0.08665965]
[1644566758679,0.11529604,43574.0,43566.0,0.08665965]
[1644566758878,0.21529604,43574.0,43567.0,0.320602]
[1644566759084,0.20414394,43571.0,43560.0,0.05]
[1644566759280,0.057425,43569.0,43561.0,0.320602]
[1644566759478,0.057425,43569.0,43562.0,0.320602]
[1644566759681,0.057425,43569.0,43559.0,0.34908594]
[1644566759878,0.057425,43569.0,43560.0,0.320602]
[1644566760079,0.057425,43569.0,43562.0,0.08597871]
[1644566760280,0.057425,43569.0,43562.0,0.320602]
[1644566760478,0.057425,43569.0,43559.0,0.30542697]
[1644566760479,0.057425,43569.0,43559.0,0.10542697]
[1644566760679,0.057425,43569.0,43562.0,0.05]
[1644566760680,0.000728,43567.0,43562.0,0.05]
[1644566760884,0.000728,43567.0,43566.0,0.05]
[1644566761080,0.000728,43567.0,43566.0,0.31945608]
[1644566761279,0.057425,43569.0,43567.0,0.720602]
[1644566761280,0.033153,43569.0,43567.0,0.720602]
[1644566761482,0.033153,43569.0,43567.0,0.770602]
[1644566761729,0.114817,43570.0,43568.0,0.320542]
[1644566761926,0.114817,43570.0,43567.0,0.12347542]
[1644566762127,0.114817,43570.0,43565.0,0.00542697]
[1644566762328,0.114817,43570.0,43566.0,0.320542]
[1644566762526,0.114817,43570.0,43566.0,0.420542]
[1644566762729,0.057408,43570.0,43567.0,0.002]
[1644566762926,0.057408,43570.0,43568.0,0.320542]
[1644566763127,0.057408,43570.0,43569.0,0.3]
[1644566763329,0.1,43574.0,43569.0,0.320542]
[1644566763527,0.1,43574.0,43570.0,0.320542]
[1644566763727,0.0574,43575.0,43571.0,0.31217419]
[1644566763933,0.001,43606.0,43574.0,0.05]
[1644566763934,0.01,43589.0,43574.0,0.05]
[1644566764127,0.01,43589.0,43584.0,0.07690222]
[1644566764332,0.01,43589.0,43585.0,0.320542]
[1644566764528,0.01412225,43587.0,43586.0,0.320542]
[1644566764731,0.01412225,43587.0,43572.0,0.6754]
[1644566764732,0.95135384,43587.0,43572.0,0.6754]
[1644566764930,0.95135384,43587.0,43573.0,0.321542]
[1644566764931,0.05741,43583.0,43573.0,0.321542]
[1644566765127,0.05741,43583.0,43573.0,0.001]
[1644566765128,0.320542,43582.0,43573.0,0.001]
[1644566765383,0.11528669,43582.0,43574.0,0.320542]
[1644566765580,0.11528669,43582.0,43581.0,0.05]
[1644566765778,0.01412225,43587.0,43581.0,0.05]
[1644566765779,0.01412225,43587.0,43582.0,0.9]
[1644566765976,0.01412225,43587.0,43583.0,0.320542]
[1644566766377,0.07150525,43587.0,43583.0,0.320542]
[1644566766676,0.07150525,43587.0,43584.0,0.320542]
[1644566766980,0.07150525,43587.0,43584.0,0.420542]
[1644566767177,0.05850525,43587.0,43584.0,0.45940742]
[1644566767380,0.057383,43598.0,43584.0,0.45940742]
[1644566767381,0.9952776,43600.0,43598.0,0.30514983]
[1644566767581,0.81633573,43600.0,43599.0,0.06339009]
[1644566767784,0.0001391,43606.0,43602.0,0.9]
[1644566767988,0.108727,43606.0,43603.0,0.320457]
[1644566768181,0.001,43607.0,43603.0,0.370457]
[1644566768382,0.001,43607.0,43604.0,0.320457]
[1644566768581,0.001,43607.0,43603.0,0.05]
[1644566768781,0.001,43607.0,43598.0,0.4]
[1644566768782,0.001,43607.0,43600.0,0.320457]
[1644566769226,0.31570844,43601.0,43600.0,0.320457]
[1644566769633,0.31570844,43601.0,43587.0,0.18523813]
[1644566769634,0.320457,43600.0,43587.0,0.18523813]
[1644566769824,0.172137,43605.0,43590.0,0.320457]
[1644566770024,0.172137,43605.0,43592.0,0.06976667]
[1644566770223,0.00072854,43596.0,43588.0,0.05738327]
[1644566770424,0.00072854,43596.0,43584.0,0.00127269]
[1644566770425,0.29091991,43595.0,43589.0,0.320457]
[1644566770626,0.00072854,43596.0,43589.0,0.320457]
[1644566770627,0.22248522,43592.0,43589.0,0.320457]
[1644566770825,0.22248522,43592.0,43590.0,0.320436]
[1644566771024,0.320436,43591.0,43586.0,0.320436]
[1644566771226,0.172169,43597.0,43590.0,0.08487715]
[1644566771426,0.05739,43594.0,43590.0,0.08487715]
[1644566771625,0.3158884,43592.0,43574.0,0.11479329]
[1644566771826,0.3,43591.0,43585.0,0.00542697]
[1644566772025,0.05,43591.0,43585.0,0.00542697]
[1644566772232,0.05,43589.0,43585.0,0.00542697]
[1644566772425,0.65,43587.0,43573.0,0.001]
[1644566772626,0.34770147,43577.0,43573.0,0.001]
[1644566772879,0.057411,43576.0,43573.0,0.001]
[1644566773474,0.2829592,43576.0,43573.0,0.001]
[1644566773674,0.2829592,43576.0,43574.0,0.06564531]
[1644566773675,0.057411,43576.0,43574.0,0.06564531]
[1644566773874,0.34770147,43577.0,43572.0,0.00502091]
[1644566774073,0.35270928,43577.0,43572.0,0.00502091]
[1644566774675,0.3538814,43576.0,43572.0,0.00502091]
[1644566774877,0.35270928,43577.0,43572.0,0.00502091]
[1644566775279,0.19196624,43576.0,43572.0,0.00502091]
[1644566776073,0.45157202,43576.0,43572.0,0.00502091]
[1644566776274,0.45157202,43576.0,43567.0,0.002]
[1644566776275,0.00269,43568.0,43567.0,0.13495735]
[1644566776475,0.00269,43568.0,43567.0,0.1248143]
[1644566776476,0.01561062,43568.0,43567.0,0.1248143]
[1644566776722,0.01561062,43568.0,43567.0,0.052]
[1644566776924,0.057412,43570.0,43568.0,0.03122124]
[1644566777326,0.057412,43570.0,43568.0,0.08122124]
[1644566777526,0.38692499,43570.0,43568.0,0.14763739]
[1644566777722,0.38692499,43570.0,43568.0,0.08122124]
[1644566777922,0.057412,43570.0,43568.0,0.35512168]
[1644566778523,0.057412,43570.0,43568.0,0.45512168]
[1644566778722,0.057412,43570.0,43568.0,0.53867003]
[1644566779325,0.057412,43570.0,43568.0,0.43867003]
[1644566779523,0.057412,43570.0,43568.0,0.08122124]
[1644566780475,0.057412,43570.0,43568.0,0.36166182]
[1644566780876,0.057412,43570.0,43568.0,0.08122124]
[1644566781476,0.057412,43570.0,43568.0,0.03122124]
[1644566781681,0.057412,43570.0,43557.0,0.0728143]
[1644566781682,0.320449,43568.0,43557.0,0.0728143]
[1644566781876,0.33204884,43561.0,43557.0,0.0728143]
[1644566782077,0.172272,43569.0,43557.0,0.0728143]
[1644566782276,0.057426,43564.0,43557.0,0.0728143]
[1644566782481,0.172272,43569.0,43547.0,0.0728143]
[1644566782482,0.114871,43562.0,43547.0,0.0728143]
[1644566782676,0.114871,43562.0,43532.0,0.22969837]
[1644566782677,0.620449,43561.0,43540.0,0.0728143]
[1644566782880,0.670449,43561.0,43540.0,0.0728143]
[1644566783074,0.18612,43568.0,43540.0,0.0728143]
[1644566783075,0.057446,43557.0,43540.0,0.0728143]
[1644566783274,0.172329,43559.0,43534.0,0.3623]
[1644566783275,0.31143051,43548.0,43541.0,0.0828143]
[1644566783476,0.31143051,43548.0,43545.0,0.0728143]
[1644566783675,0.31143051,43548.0,43544.0,0.08144576]
[1644566784121,0.36887351,43548.0,43542.0,0.08168439]
[1644566784322,0.36887351,43548.0,43541.0,0.01]
[1644566784323,0.057447,43547.0,43541.0,0.01]
[1644566784722,0.38334813,43547.0,43541.0,0.01]
[1644566784921,0.38334813,43547.0,43530.0,0.11489487]
[1644566785123,0.3725174,43535.0,43527.0,0.04626]
[1644566785324,0.114919,43540.0,43534.0,0.06872265]
[1644566785722,0.114919,43540.0,43534.0,0.42210517]
[1644566785723,0.05746,43539.0,43534.0,0.42210517]
[1644566786025,0.3,43546.0,43535.0,0.0006838]
[1644566786026,0.00526551,43536.0,43535.0,0.0006838]
[1644566786224,0.00526551,43536.0,43535.0,0.12183602]
[1644566786422,0.00526551,43536.0,43535.0,0.07183602]
[1644566786825,0.00526551,43536.0,43535.0,0.12183602]
[1644566787123,0.00526551,43536.0,43535.0,0.11115222]
[1644566787989,0.00526551,43536.0,43535.0,0.04]
[1644566788187,0.00526551,43537.0,43535.0,0.04]
[1644566788386,0.00526551,43537.0,43534.0,0.6108346]
[1644566788585,0.06271551,43537.0,43534.0,0.6108346]
[1644566789084,0.06271551,43537.0,43535.0,0.08293957]
[1644566789686,0.06271551,43537.0,43534.0,0.6108346]
[1644566790190,0.05745,43537.0,43534.0,0.6108346]
[1644566790984,0.05745,43537.0,43535.0,0.06367839]
[1644566795574,0.04327579,43537.0,43535.0,0.17855839]
[1644566796576,0.04299954,43537.0,43535.0,0.17855839]
[1644566796977,0.04299954,43537.0,43536.0,0.2]
[1644566797176,0.04299954,43537.0,43536.0,0.05]
[1644566797375,0.04299954,43537.0,43536.0,0.2]
[1644566797977,0.01053102,43538.0,43536.0,0.25]
[1644566798177,0.00526551,43538.0,43536.0,0.25]
[1644566798378,0.00526551,43538.0,43536.0,0.35744075]
[1644566798581,0.00526551,43538.0,43537.0,0.057439]
[1644566800126,0.06270451,43539.0,43537.0,0.37341272]
[1644566800325,0.06270451,43539.0,43538.0,0.29991238]
[1644566801133,0.057435,43541.0,43539.0,0.9]
[1644566801328,0.51436622,43559.0,43540.0,0.36730069]
[1644566801527,0.51436622,43559.0,43544.0,0.11486238]
[1644566801727,0.27049146,43553.0,43545.0,0.05]
[1644566802229,0.057436,43552.0,43545.0,0.10743119]
[1644566802426,0.172311,43552.0,43545.0,0.10743119]
[1644566802627,0.172311,43552.0,43548.0,0.08056778]
[1644566802876,0.172311,43552.0,43548.0,0.05]
[1644566803072,0.057438,43551.0,43545.0,0.10743119]
[1644566803371,0.172312,43551.0,43542.0,0.49571817]
[1644566803571,0.114874,43551.0,43542.0,0.39571817]
[1644566803776,0.114874,43551.0,43543.0,0.057437]
[1644566803974,0.114874,43551.0,43544.0,0.00071363]
[1644566804174,0.057437,43549.0,43545.0,0.07243306]
[1644566804775,0.057437,43549.0,43545.0,0.12243306]
[1644566805177,0.057437,43549.0,43545.0,0.12314668]
[1644566805676,0.172311,43548.0,43545.0,0.12314668]
[1644566806279,0.172311,43548.0,43545.0,0.12243306]
[1644566806724,0.172311,43548.0,43545.0,0.17986906]
[1644566806926,0.574428,43590.0,43552.0,0.00057666]
[1644566807125,0.057439,43560.0,43552.0,0.00057666]
[1644566807325,0.23139968,43554.0,43552.0,0.00057666]
[1644566807525,0.23139968,43554.0,43552.0,0.00130457]
[1644566807526,0.25757448,43553.0,43552.0,0.00130457]
[1644566807931,0.25742448,43553.0,43552.0,0.00130457]
[1644566808725,0.25742448,43553.0,43552.0,0.00057666]
[1644566809828,0.25742448,43553.0,43549.0,0.0052795]
[1644566809829,0.764886,43552.0,43549.0,0.0052795]
[1644566810028,0.114886,43552.0,43550.0,0.00071233]
[1644566810227,0.28383347,43551.0,43550.0,0.00071233]
[1644566810471,0.25742448,43553.0,43540.0,0.15]
[1644566810472,0.172335,43550.0,43540.0,0.15]
[1644566810669,0.172335,43550.0,43541.0,0.12944864]
[1644566810670,0.35336005,43545.0,43541.0,0.12944864]
[1644566810871,0.172335,43550.0,43541.0,0.12944864]
[1644566810872,0.24544805,43547.0,43541.0,0.12944864]
[1644566811073,0.057441,43544.0,43541.0,0.12944864]
[1644566811271,0.05744,43543.0,43541.0,0.12944864]
[1644566811869,0.05744,43543.0,43542.0,0.05744]
[1644566813473,0.05744,43543.0,43541.0,0.12944864]
[1644566814520,0.05744,43543.0,43541.0,0.18688964]
[1644566815324,0.42865159,43543.0,43541.0,0.12944864]
[1644566815522,0.73303445,43543.0,43541.0,0.12944864]
[1644566815725,0.36182286,43543.0,43541.0,0.12944864]
[1644566815924,0.36154641,43543.0,43541.0,0.12944864]
[1644566816123,0.36154641,43543.0,43541.0,0.27944864]
[1644566816323,0.05716355,43543.0,43541.0,0.12944864]
[1644566816727,0.05716355,43543.0,43541.0,0.27944864]
[1644566817324,0.32848351,43543.0,43541.0,0.27944864]
[1644566817526,0.05716355,43543.0,43541.0,0.27944864]
[1644566817725,0.05716355,43543.0,43541.0,0.2]
[1644566818574,0.05716355,43543.0,43541.0,0.3]
[1644566819378,0.05716355,43543.0,43541.0,0.1]
[1644566819578,0.05716355,43543.0,43541.0,0.042546]
[1644566819775,0.07716355,43543.0,43541.0,0.042546]
[1644566819977,0.07716355,43543.0,43534.0,2.15]
[1644566820276,0.07716355,43543.0,43540.0,0.00509087]
[1644566820277,0.00464467,43541.0,43540.0,0.00509087]
[1644566820476,0.057453,43540.0,43534.0,2.21873166]
[1644566820675,0.057453,43539.0,43534.0,2.21873166]
[1644566820877,0.057453,43539.0,43535.0,0.05]
[1644566821478,0.057454,43538.0,43535.0,0.05]
[1644566821722,0.057451,43537.0,43535.0,0.05]
[1644566822721,0.057451,43537.0,43535.0,0.045]
[1644566823723,0.057451,43537.0,43534.0,2.157451]
[1644566823924,0.39042712,43537.0,43534.0,2.157451]
[1644566824124,0.39042712,43537.0,43534.0,2.1]
[1644566824338,0.39042712,43537.0,43534.0,1.655263]
[1644566824339,0.38297612,43537.0,43534.0,1.655263]
[1644566824532,0.114934,43535.0,43534.0,1.655263]
[1644566824727,0.114934,43535.0,43534.0,0.965657]
[1644566824924,0.95760512,43537.0,43534.0,0.965657]
[1644566825384,0.95760512,43537.0,43534.0,0.276125]
[1644566825577,0.114931,43536.0,43534.0,0.276125]
[1644566826587,0.114931,43536.0,43534.0,0.326125]
[1644566826978,0.24858298,43535.0,43534.0,0.326125]
[1644566827184,0.114931,43536.0,43534.0,0.326125]
[1644566827378,0.40135223,43536.0,43534.0,0.326125]
[1644566827779,0.12292666,43535.0,43534.0,0.326125]
[1644566828385,0.12292666,43535.0,43534.0,0.626125]
[1644566828386,0.07292666,43535.0,43534.0,0.626125]
[1644566828583,0.07292666,43535.0,43534.0,0.9669059]
[1644566830625,0.07292666,43535.0,43534.0,0.9569059]
[1644566831223,0.07292666,43535.0,43534.0,1.24206102]
[1644566831423,0.114931,43536.0,43534.0,1.24206102]
[1644566831424,0.114931,43536.0,43535.0,0.9]
[1644566831623,0.114931,43536.0,43535.0,1.18761093]
[1644566831825,0.592362,43541.0,43536.0,0.06634602]
[1644566831826,0.114906,43540.0,43536.0,0.06634602]
[1644566832026,0.00072349,43547.0,43539.0,0.39]
[1644566832227,0.00072349,43547.0,43540.0,0.04626]
[1644566832423,0.00072349,43547.0,43546.0,0.25830208]
[1644566832623,0.477422,43549.0,43546.0,0.25830208]
[1644566832878,0.00045775,43547.0,43546.0,0.42314791]
[1644566833074,0.00045775,43547.0,43546.0,0.36572608]
[1644566833275,0.00045775,43547.0,43546.0,0.46572608]
[1644566833677,0.00045775,43547.0,43546.0,0.207424]
[1644566833876,0.114842,43548.0,43546.0,0.157424]
[1644566834075,0.114842,43548.0,43546.0,0.347424]
[1644566834275,0.114842,43548.0,43546.0,0.057424]
[1644566834276,0.12457754,43548.0,43546.0,0.057424]
[1644566834476,0.12457754,43548.0,43546.0,0.157424]
[1644566835674,0.12457754,43548.0,43546.0,0.057424]
[1644566836076,0.12457754,43548.0,43546.0,0.247424]
[1644566836477,0.114842,43548.0,43546.0,0.247424]
[1644566836726,0.114842,43548.0,43546.0,0.235353]
[1644566836927,0.00438885,43550.0,43546.0,0.235353]
[1644566837127,0.00438885,43550.0,43547.0,0.9]
[1644566837327,0.00438885,43550.0,43547.0,1.0]
[1644566837631,0.00438885,43550.0,43549.0,0.177929]
[1644566837828,0.00411238,43550.0,43549.0,0.177929]
[1644566839229,0.29132952,43551.0,43549.0,0.177929]
[1644566840876,0.114844,43550.0,43549.0,0.177929]
[1644566841172,0.114844,43550.0,43548.0,0.11286712]
[1644566842777,0.164844,43550.0,43548.0,0.11286712]
[1644566843177,0.114844,43550.0,43548.0,0.06286712]
[1644566843375,0.114844,43550.0,43548.0,0.057429]
[1644566843977,0.064844,43550.0,43548.0,0.057429]
[1644566845432,0.114844,43550.0,43548.0,0.057429]
[1644566845630,0.064844,43550.0,43548.0,0.057429]
[1644566847031,0.064844,43550.0,43549.0,0.29002463]
[1644566848477,0.064844,43550.0,43548.0,0.2122136]
[1644566848677,0.064844,43550.0,43548.0,0.1122136]
[1644566848877,0.064844,43550.0,43548.0,0.0622136]
[1644566849278,0.06458511,43550.0,43549.0,0.28625388]
[1644566849478,0.06107398,43550.0,43549.0,0.28625388]
[1644566850476,0.11107398,43550.0,43549.0,0.28625388]
[1644566850682,0.11107398,43550.0,43548.0,0.21252943]
[1644566851278,0.11068722,43550.0,43548.0,0.21252943]
[1644566851728,0.11068722,43550.0,43548.0,0.11252943]
[1644566851931,0.11068722,43550.0,43547.0,0.27227939]
[1644566852228,0.00510043,43549.0,43547.0,0.27227939]
[1644566852428,0.00510043,43549.0,43547.0,0.17227939]
[1644566852828,0.16811122,43550.0,43547.0,0.17227939]
[1644566853430,0.47619295,43550.0,43547.0,0.17227939]
[1644566854232,0.16811122,43550.0,43546.0,0.261102]
[1644566854432,0.16811122,43550.0,43546.0,0.161102]
[1644566854833,0.16811122,43550.0,43547.0,0.05742639]
[1644566855131,0.16811122,43550.0,43547.0,0.17227939]
[1644566855385,0.057436,43544.0,43542.0,0.00072488]
[1644566855577,0.172315,43547.0,43542.0,0.00072488]
[1644566855780,0.172315,43547.0,43535.0,0.19312161]
[1644566856177,0.05,43546.0,43542.0,0.08083315]
[1644566856377,0.05,43546.0,43540.0,0.06912842]
[1644566856378,0.3568537,43545.0,43540.0,0.06912842]
[1644566856575,0.3568537,43545.0,43537.0,0.3]
[1644566856776,0.3568537,43545.0,43536.0,0.218169]
[1644566856975,0.3568537,43545.0,43536.0,0.04587]
[1644566857376,0.27987163,43543.0,43536.0,0.04587]
[1644566857575,0.057435,43541.0,43538.0,0.11487]
[1644566857775,0.172304,43542.0,43538.0,0.11487]
[1644566857975,0.222304,43542.0,43538.0,0.11487]
[1644566858177,0.222304,43542.0,43538.0,0.22973547]
[1644566858380,0.222304,43542.0,43538.0,0.11486547]
[1644566858776,0.057435,43541.0,43539.0,0.05743266]
[1644566858976,0.11487,43541.0,43539.0,0.17230266]
[1644566860129,0.11487,43541.0,43539.0,0.11487]
[1644566862730,0.11487,43541.0,43539.0,0.18733914]
[1644566863689,0.11487,43541.0,43539.0,0.17230638]
[1644566867135,0.05,43542.0,43540.0,0.057436]
[1644566867336,0.05,43543.0,43540.0,0.057436]
[1644566867637,0.057435,43541.0,43540.0,0.114872]
[1644566868038,0.172304,43542.0,43540.0,0.114872]
[1644566868337,0.172304,43542.0,43539.0,0.00476022]
[1644566868536,0.172304,43542.0,43539.0,0.06186817]
[1644566868740,0.114874,43541.0,43536.0,0.04587]
[1644566868938,0.00443022,43540.0,43539.0,0.114874]
[1644566869138,0.22321926,43540.0,43539.0,0.114874]
[1644566869338,0.49906194,43540.0,43539.0,0.114874]
[1644566870381,0.22321926,43540.0,43539.0,0.114874]
[1644566870975,0.00443022,43540.0,43539.0,0.114874]
[1644566871176,0.00443022,43540.0,43539.0,0.17231195]
[1644566871978,0.00443022,43540.0,43539.0,0.114874]
[1644566872588,0.00443022,43540.0,43531.0,0.19314883]
[1644566872589,0.9,43536.0,43531.0,0.19314883]
[1644566872782,0.05,43532.0,43529.0,0.19314883]
[1644566872980,0.05,43532.0,43521.0,0.29972324]
[1644566872981,0.6317166,43531.0,43521.0,0.00967]
[1644566873181,0.29944935,43524.0,43519.0,0.19334965]
[1644566873381,0.29944935,43524.0,43517.0,0.00271821]
[1644566873382,0.34944935,43524.0,43518.0,0.18334965]
[1644566873582,0.34944935,43524.0,43513.0,0.28972324]
[1644566873583,0.22035331,43522.0,43516.0,0.07640447]
[1644566873783,0.05,43522.0,43514.0,0.07370964]
[1644566873985,0.44944935,43524.0,43515.0,0.28968634]
[1644566873986,0.35425009,43521.0,43515.0,0.28968634]
[1644566874230,0.35425009,43521.0,43510.0,0.24168706]
[1644566874231,0.38375084,43517.0,43510.0,0.24168706]
[1644566874433,0.38375084,43517.0,43506.0,0.24168706]
[1644566874434,0.53375084,43517.0,43506.0,0.24168706]
[1644566874633,0.229967,43514.0,43505.0,0.24168706]
[1644566874931,0.229967,43514.0,43502.0,0.28972324]
[1644566874932,0.279967,43514.0,43502.0,0.24186036]
[1644566875332,0.279967,43514.0,43510.0,0.0798054]
[1644566875333,0.172468,43512.0,43510.0,0.0798054]
[1644566875530,0.172468,43512.0,43504.0,0.057477]
[1644566875531,0.287424,43512.0,43505.0,0.06524654]
[1644566876130,0.62771845,43512.0,43505.0,0.06524654]
[1644566876535,0.32862338,43509.0,43505.0,0.06524654]
[1644566876731,0.344879,43509.0,43505.0,0.06524654]
[1644566876932,0.344879,43509.0,43505.0,0.18019254]
[1644566877331,0.344879,43509.0,43505.0,0.18045494]
[1644566877732,0.34029445,43512.0,43505.0,0.18045494]
[1644566878187,0.34001803,43512.0,43505.0,0.18045494]
[1644566878385,0.34001803,43512.0,43505.0,0.18019254]
[1644566878586,0.34001803,43512.0,43506.0,0.00026227]
[1644566878786,0.172439,43509.0,43507.0,0.057475]
[1644566878989,0.344879,43509.0,43506.0,0.00026227]
[1644566879195,0.9,43507.0,43487.0,0.24161702]
[1644566879391,0.9,43507.0,43484.0,0.07588836]
[1644566879392,0.114964,43504.0,43484.0,0.07588836]
[1644566879587,0.3,43503.0,43484.0,0.07588836]
[1644566879887,0.057482,43500.0,43484.0,0.07588836]
[1644566880091,0.057502,43491.0,43489.0,0.26842159]
[1644566880287,0.057502,43491.0,43490.0,0.06408224]
[1644566880687,0.057502,43491.0,43489.0,0.26842159]
[1644566881938,0.057502,43491.0,43484.0,0.19088136]
[1644566882138,0.057502,43491.0,43487.0,0.08378215]
[1644566882342,0.057502,43491.0,43488.0,0.0007213]
[1644566882641,0.057502,43491.0,43488.0,0.0582173]
[1644566882839,0.06226322,43492.0,43488.0,0.0582173]
[1644566882840,0.057486,43494.0,43490.0,0.05]
[1644566883042,0.42,43510.0,43502.0,0.33827422]
[1644566883043,0.30072099,43507.0,43502.0,0.33827422]
[1644566883340,0.77,43510.0,43506.0,0.05]
[1644566883540,0.77,43510.0,43502.0,0.38827422]
[1644566883541,0.920216,43510.0,43502.0,0.38827422]
[1644566883740,0.920216,43510.0,43503.0,0.057473]
[1644566884143,0.3,43509.0,43503.0,0.057473]
[1644566884346,0.3,43509.0,43490.0,1.14135406]
[1644566884347,0.114948,43508.0,43491.0,0.578]
[1644566884541,0.057496,43505.0,43502.0,0.00456181]
[1644566884741,0.114987,43505.0,43502.0,0.00456181]
[1644566885140,0.37342261,43505.0,43502.0,0.00456181]
[1644566885577,0.67755527,43505.0,43502.0,0.00456181]
[1644566886480,0.9473245,43505.0,43502.0,0.00456181]
[1644566886682,0.22173104,43494.0,43487.0,0.07649347]
[1644566886883,0.057506,43493.0,43485.0,0.32018048]
[1644566887078,0.057506,43493.0,43482.0,0.04535406]
[1644566887079,0.057506,43493.0,43486.0,0.00072197]
[1644566887877,0.05,43491.0,43486.0,0.00072197]
[1644566888077,0.05,43492.0,43485.0,0.34626059]
[1644566888278,0.057506,43493.0,43489.0,0.07513398]
[1644566888279,0.107506,43493.0,43489.0,0.07513398]
[1644566888878,0.057506,43492.0,43489.0,0.07513398]
[1644566889326,0.107506,43492.0,43489.0,0.12513398]
[1644566890128,0.30049613,43491.0,43489.0,0.12513398]
[1644566890527,0.30049613,43491.0,43489.0,0.05]
[1644566890528,0.56951655,43491.0,43489.0,0.05]
[1644566890727,0.30049613,43491.0,43486.0,0.00098148]
[1644566890928,0.107508,43490.0,43486.0,0.00072183]
[1644566891127,0.057507,43489.0,43486.0,0.00072183]
[1644566891529,0.23,43492.0,43486.0,0.00072183]
[1644566891530,0.23,43492.0,43487.0,0.06928989]
[1644566891730,0.23,43492.0,43487.0,0.06954954]
[1644566892132,0.23,43492.0,43490.0,0.273461]
[1644566892529,0.23,43492.0,43490.0,0.05]
[1644566892729,0.287495,43492.0,43490.0,0.05]
[1644566892978,0.287495,43492.0,43488.0,0.00025965]
[1644566893184,0.287495,43492.0,43488.0,0.057491]
[1644566893378,0.287495,43492.0,43488.0,0.05775065]
[1644566893579,0.287495,43492.0,43488.0,0.34888622]
[1644566893783,0.287495,43492.0,43488.0,0.05775065]
[1644566894382,0.057498,43491.0,43488.0,0.05775065]
[1644566894785,0.057498,43491.0,43489.0,0.30633804]
[1644566895182,0.057498,43491.0,43489.0,0.35633804]
[1644566895782,0.107498,43491.0,43489.0,0.05]
[1644566895983,0.107498,43491.0,43488.0,0.10775065]
[1644566896185,0.057498,43491.0,43488.0,0.34758827]
[1644566896397,0.29277225,43492.0,43488.0,0.44758827]
[1644566896630,0.29277225,43492.0,43488.0,0.34758827]
[1644566897032,0.05732962,43497.0,43489.0,0.9]
[1644566897232,0.05732962,43497.0,43495.0,0.06636176]
[1644566897436,0.05705291,43497.0,43495.0,0.06636176]
[1644566897631,0.05705291,43497.0,43492.0,0.00025965]
[1644566897833,0.260881,43499.0,43492.0,0.00025965]
[1644566898031,0.057494,43497.0,43492.0,0.00025965]
[1644566898232,0.057494,43497.0,43491.0,0.28999448]
[1644566898433,0.057494,43497.0,43491.0,0.00501336]
[1644566898635,0.057494,43497.0,43494.0,0.057494]
[1644566898835,0.057494,43497.0,43495.0,0.42708311]
[1644566899033,0.057494,43497.0,43496.0,0.30445368]
[1644566899234,0.00496529,43500.0,43496.0,0.30445368]
[1644566899438,0.00496529,43500.0,43496.0,0.40471333]
[1644566899633,0.00496529,43500.0,43497.0,0.057479]
[1644566899834,0.00496529,43500.0,43497.0,0.05773865]
[1644566900485,0.06244429,43500.0,43497.0,0.05773865]
[1644566900680,0.057479,43500.0,43497.0,0.05773865]
[1644566901278,0.057479,43500.0,43499.0,0.06763351]
[1644566901480,0.057479,43500.0,43498.0,0.00025965]
[1644566901679,0.057479,43500.0,43497.0,0.05773865]
[1644566902781,0.057479,43500.0,43498.0,0.0748952]
[1644566902980,0.057479,43500.0,43499.0,0.32937591]
[1644566904330,0.287479,43500.0,43499.0,0.42937591]
[1644566904531,0.287479,43500.0,43499.0,0.32937591]
[1644566905031,0.287479,43500.0,43498.0,0.13025334]
[1644566905233,0.23,43500.0,43498.0,0.12999369]
[1644566905436,0.23,43500.0,43499.0,0.114955]
[1644566909182,0.23,43500.0,43499.0,0.19293126]
[1644566909881,0.23,43500.0,43499.0,0.24293126]
[1644566910585,0.23,43500.0,43499.0,0.164955]